bitfinex-derivatives/quotes_BTCF0:USTF0_20241010
["timestamp","ask_amount","ask_price","bid_price","bid_amount"]
[1728537405227,0.24689502,60894.0,60893.0,0.26928488]
[1728537408318,0.24689502,60894.0,60893.0,0.26927916]
[1728537409523,0.24689502,60894.0,60893.0,0.17061285]
[1728537413139,0.24689502,60894.0,60893.0,0.082181]
[1728537413437,0.12689502,60894.0,60893.0,0.082181]
[1728537413631,0.24689502,60894.0,60893.0,0.082181]
[1728537420148,0.24689502,60894.0,60893.0,0.1705325]
[1728537421348,0.24689502,60894.0,60893.0,0.17053027]
[1728537422444,0.24689502,60894.0,60893.0,0.27583229]
[1728537425951,0.24689502,60894.0,60893.0,0.27572275]
[1728537426456,0.12689502,60894.0,60893.0,0.27572275]
[1728537430858,0.12689502,60894.0,60893.0,0.275224]
[1728537435366,0.12689502,60894.0,60893.0,0.082181]
[1728537443361,0.12689502,60894.0,60893.0,0.18071135]
[1728537443560,0.12689502,60894.0,60893.0,0.26891365]
[1728537445374,0.12689502,60894.0,60893.0,0.26896907]
[1728537446777,0.12689502,60894.0,60893.0,0.17043872]
[1728537447270,0.20907402,60894.0,60893.0,0.18683493]
[1728537447470,0.20907402,60894.0,60893.0,0.08825772]
[1728537447670,0.20907402,60894.0,60893.0,0.05254559]
[1728537449975,0.20907402,60894.0,60892.0,0.00246321]
[1728537450177,0.20907402,60894.0,60893.0,0.16432521]
[1728537450371,0.20907402,60894.0,60893.0,0.082181]
[1728537451074,0.20507402,60894.0,60893.0,0.082181]
[1728537451271,0.32707402,60894.0,60893.0,0.082181]
[1728537456974,0.32707402,60894.0,60893.0,0.13145117]
[1728537457384,0.32707402,60894.0,60893.0,0.15117319]
[1728537458282,0.32707402,60894.0,60893.0,0.12817981]
[1728537459283,0.32707402,60894.0,60893.0,0.12278209]
[1728537459876,0.32707402,60894.0,60890.0,0.46153721]
[1728537459877,0.24489502,60894.0,60890.0,0.45864325]
[1728537460084,0.24489502,60894.0,60884.0,0.0038]
[1728537460085,0.12,60891.0,60884.0,0.0038]
[1728537460287,0.12,60885.0,60884.0,0.082193]
[1728537460479,0.23,60885.0,60884.0,0.082193]
[1728537460687,0.2601,60885.0,60884.0,0.082193]
[1728537460874,0.1401,60885.0,60884.0,0.082193]
[1728537461076,0.2601,60885.0,60884.0,0.082193]
[1728537461788,0.2611,60885.0,60884.0,0.084193]
[1728537462184,0.2611,60885.0,60884.0,0.082193]
[1728537462185,0.2601,60885.0,60884.0,0.082193]
[1728537462379,0.2601,60885.0,60884.0,0.084193]
[1728537462380,0.2611,60885.0,60884.0,0.084193]
[1728537465486,0.28131788,60885.0,60884.0,0.084193]
[1728537467285,0.25121788,60885.0,60884.0,0.084193]
[1728537473889,0.25121788,60885.0,60884.0,0.13342087]
[1728537475697,0.13121788,60885.0,60884.0,0.13342087]
[1728537475994,0.25121788,60885.0,60884.0,0.084193]
[1728537476201,0.25121788,60885.0,60884.0,0.149593]
[1728537476394,0.25121788,60885.0,60884.0,0.21523016]
[1728537476585,0.25121788,60885.0,60884.0,0.149593]
[1728537480613,0.25121788,60885.0,60884.0,0.33517087]
[1728537481823,0.25121788,60885.0,60884.0,0.23667131]
[1728537487612,0.25121788,60885.0,60884.0,0.149593]
[1728537489118,0.25121788,60885.0,60884.0,0.116493]
[1728537490013,0.25121788,60885.0,60884.0,0.084193]
[1728537493122,0.25121788,60885.0,60884.0,0.166339]
[1728537493331,0.25121788,60885.0,60884.0,0.084193]
[1728537493916,0.33340888,60885.0,60884.0,0.14991626]
[1728537494325,0.33340888,60885.0,60884.0,0.084193]
[1728537495622,0.33340888,60885.0,60884.0,0.17144647]
[1728537496023,0.25121788,60885.0,60884.0,0.17144647]
[1728537502630,0.25121788,60885.0,60884.0,0.14992682]
[1728537510741,0.25121788,60885.0,60884.0,0.17146622]
[1728537514341,0.25121788,60885.0,60884.0,0.17146711]
[1728537518150,0.25121788,60885.0,60884.0,0.26996465]
[1728537518541,0.25121788,60885.0,60884.0,0.17146711]
[1728537520344,0.25121788,60885.0,60884.0,0.17147981]
[1728537521953,0.25121788,60885.0,60884.0,0.26997735]
[1728537523546,0.25121788,60885.0,60884.0,0.17147981]
[1728537525154,0.25121788,60885.0,60884.0,0.1715178]
[1728537525747,0.25121788,60885.0,60884.0,0.084193]
[1728537532644,0.33340888,60885.0,60884.0,0.18801145]
[1728537533156,0.33340888,60885.0,60884.0,0.08933093]
[1728537533964,0.33340888,60885.0,60884.0,0.18801145]
[1728537534457,0.33340888,60885.0,60884.0,0.08933093]
[1728537539556,0.33340888,60885.0,60884.0,0.08937185]
[1728537540661,0.33340888,60885.0,60884.0,0.06777861]
[1728537544558,0.25121788,60885.0,60884.0,0.06777861]
[1728537544856,0.25121788,60885.0,60884.0,0.14997161]
[1728537547756,0.25121788,60885.0,60884.0,0.17157597]
[1728537548461,0.25121788,60885.0,60884.0,0.27025649]
[1728537552770,0.25121788,60885.0,60884.0,0.27018612]
[1728537555465,0.33340888,60885.0,60884.0,0.18799312]
[1728537556365,0.33340888,60885.0,60884.0,0.0893126]
[1728537557761,0.13121788,60885.0,60884.0,0.1715056]
[1728537558169,0.25121788,60885.0,60884.0,0.1715056]
[1728537561572,0.25121788,60885.0,60884.0,0.0893126]
[1728537562771,0.25121788,60885.0,60884.0,0.002]
[1728537569177,0.13121788,60885.0,60884.0,0.002]
[1728537569376,0.25121788,60885.0,60884.0,0.002]
[1728537570776,0.25121788,60885.0,60884.0,0.08942516]
[1728537572295,0.13121788,60885.0,60884.0,0.08942516]
[1728537572471,0.13121788,60885.0,60884.0,0.53241816]
[1728537572671,0.13121788,60885.0,60884.0,0.63109868]
[1728537572981,0.25121788,60885.0,60884.0,0.63647788]
[1728537573189,0.25121788,60885.0,60884.0,0.53241816]
[1728537574484,0.25121788,60885.0,60884.0,0.53233768]
[1728537575982,0.25121788,60885.0,60884.0,0.63100175]
[1728537576976,0.12,60892.0,60891.0,0.082183]
[1728537577174,0.12,60892.0,60891.0,0.442983]
[1728537578082,0.125,60892.0,60891.0,0.442983]
[1728537578384,0.125,60892.0,60891.0,0.935663]
[1728537578385,0.005,60892.0,60891.0,0.935663]
[1728537578580,0.125,60892.0,60891.0,0.935663]
[1728537579083,0.125,60892.0,60891.0,0.442983]
[1728537583781,0.125,60892.0,60891.0,0.50859007]
[1728537583982,0.125,60892.0,60891.0,0.442983]
[1728537584185,0.125,60892.0,60891.0,0.082183]
[1728537584388,0.125,60892.0,60891.0,0.50857736]
[1728537585687,0.125,60892.0,60891.0,0.442983]
[1728537586186,0.12,60892.0,60891.0,0.442983]
[1728537586382,0.12,60892.0,60891.0,0.534274]
[1728537586687,0.12,60892.0,60891.0,0.62809109]
[1728537586892,0.12,60892.0,60891.0,0.65378758]
[1728537587192,0.12,60892.0,60891.0,0.55530808]
[1728537587382,0.12,60892.0,60891.0,0.65365127]
[1728537587692,0.12,60892.0,60891.0,0.52961159]
[1728537593490,0.12,60892.0,60891.0,0.50852619]
[1728537594587,0.14017199,60892.0,60891.0,0.50852619]
[1728537597491,0.14017199,60892.0,60891.0,0.442983]
[1728537601499,0.14017199,60892.0,60891.0,0.63320859]
[1728537602604,0.14017199,60892.0,60891.0,0.27240859]
[1728537603095,0.14017199,60892.0,60891.0,0.63320859]
[1728537603495,0.14017199,60892.0,60891.0,0.27240859]
[1728537603796,0.14017199,60892.0,60891.0,0.63320859]
[1728537607099,0.02017199,60892.0,60891.0,0.63320859]
[1728537607303,0.12,60892.0,60891.0,0.63320859]
[1728537614504,0.12,60892.0,60891.0,0.63346005]
[1728537616702,0.12,60892.0,60891.0,0.52988098]
[1728537617511,0.12,60892.0,60891.0,0.16908098]
[1728537617807,0.12,60892.0,60891.0,0.52988098]
[1728537618809,0.12,60892.0,60891.0,0.16908098]
[1728537619011,0.12,60892.0,60891.0,0.52988098]
[1728537619201,0.12,60892.0,60891.0,0.52987799]
[1728537623609,0.12,60892.0,60891.0,0.63346176]
[1728537623807,0.12,60892.0,60891.0,0.27266176]
[1728537624009,0.12,60892.0,60891.0,0.63346176]
[1728537628609,0.12,60892.0,60891.0,0.54656677]
[1728537628916,0.12,60892.0,60891.0,0.63344718]
[1728537629215,0.12,60892.0,60891.0,0.95344718]
[1728537630611,0.12,60892.0,60891.0,0.84987511]
[1728537632616,0.12,60892.0,60887.0,0.0077]
[1728537632617,0.49268,60891.0,60887.0,0.04110029]
[1728537632814,0.49268,60891.0,60885.0,0.05438047]
[1728537632815,0.12,60886.0,60885.0,0.05438047]
[1728537633120,0.082203,60877.0,60876.0,0.082203]
[1728537633313,0.563003,60877.0,60876.0,0.082203]
[1728537634325,0.4808,60877.0,60876.0,0.082203]
[1728537635218,0.4818,60877.0,60876.0,0.085203]
[1728537635421,0.4828,60877.0,60876.0,0.088203]
[1728537639619,0.50455357,60877.0,60876.0,0.088203]
[1728537640513,0.38455357,60877.0,60876.0,0.088203]
[1728537640831,0.50455357,60877.0,60876.0,0.088203]
[1728537642922,0.61455357,60877.0,60876.0,0.088203]
[1728537646327,0.49455357,60877.0,60876.0,0.088203]
[1728537646529,0.02375357,60877.0,60876.0,0.088203]
[1728537647634,0.02375357,60877.0,60876.0,0.17297759]
[1728537653754,0.02375357,60877.0,60876.0,0.27162681]
[1728537655251,0.02375357,60877.0,60876.0,0.17297759]
[1728537655947,0.02375357,60877.0,60876.0,0.27135126]
[1728537656143,0.02375357,60877.0,60876.0,0.17297759]
[1728537657250,0.02375357,60877.0,60876.0,0.27396762]
[1728537660850,0.02375357,60877.0,60876.0,0.27145482]
[1728537661153,0.02375357,60877.0,60876.0,0.17297759]
[1728537662153,0.02375357,60877.0,60876.0,0.27410569]
[1728537664152,0.8212,60895.0,60876.0,0.27409104]
[1728537664153,0.3608,60889.0,60876.0,0.27409104]
[1728537664456,0.0038,60887.0,60886.0,0.16431711]
[1728537664658,0.38272709,60889.0,60888.0,0.082187]
[1728537664855,0.62272709,60889.0,60888.0,0.082187]
[1728537665256,0.62272709,60889.0,60888.0,0.16430366]
[1728537665459,0.38272709,60889.0,60888.0,0.24889897]
[1728537665757,0.50272709,60889.0,60888.0,0.24891516]
[1728537665960,0.50372709,60889.0,60888.0,0.24891516]
[1728537666349,0.50372709,60889.0,60888.0,0.082187]
[1728537666557,0.50272709,60889.0,60888.0,0.16430366]
[1728537666763,0.50372709,60889.0,60888.0,0.16430366]
[1728537666966,0.50572709,60889.0,60888.0,0.16430366]
[1728537667263,0.50572709,60889.0,60888.0,0.2488763]
[1728537667662,0.50572709,60889.0,60888.0,0.16675964]
[1728537668249,0.50572709,60889.0,60888.0,0.2488188]
[1728537668863,0.50572709,60889.0,60888.0,0.26531217]
[1728537669278,0.50572709,60889.0,60888.0,0.26521851]
[1728537669954,0.50572709,60889.0,60888.0,0.26509737]
[1728537670562,0.14492709,60889.0,60888.0,0.1666385]
[1728537670752,0.14492709,60889.0,60888.0,0.26509737]
[1728537671359,0.14492709,60889.0,60888.0,0.1666385]
[1728537672165,0.0038,60896.0,60888.0,0.0844515]
[1728537672369,0.0038,60896.0,60887.0,0.3608]
[1728537672370,0.16,60896.0,60895.0,0.082178]
[1728537672564,0.16,60896.0,60895.0,0.24847946]
[1728537673269,0.168,60896.0,60895.0,0.24847946]
[1728537673465,0.177,60896.0,60895.0,0.24847946]
[1728537673658,0.169,60896.0,60895.0,0.24847946]
[1728537673861,0.177,60896.0,60895.0,0.24847946]
[1728537674267,0.177,60896.0,60895.0,0.1642072]
[1728537675263,0.03866993,60896.0,60895.0,0.28626836]
[1728537675563,0.03866993,60896.0,60895.0,0.28726836]
[1728537675763,0.39946993,60896.0,60895.0,0.16726836]
[1728537676570,0.43196993,60896.0,60895.0,0.16726836]
[1728537676869,0.57684593,60896.0,60895.0,0.083178]
[1728537677267,0.69684593,60896.0,60895.0,0.083178]
[1728537678680,0.33604593,60896.0,60895.0,0.083178]
[1728537678974,0.69684593,60896.0,60895.0,0.083178]
[1728537684271,0.33604593,60896.0,60895.0,0.13239855]
[1728537684471,0.69684593,60896.0,60895.0,0.13239855]
[1728537686777,0.69684593,60896.0,60895.0,0.083178]
[1728537689570,0.33604593,60896.0,60895.0,0.083178]
[1728537689783,0.69684593,60896.0,60895.0,0.083178]
[1728537693277,0.69684593,60896.0,60895.0,0.16517756]
[1728537694285,0.69684593,60896.0,60895.0,0.24972791]
[1728537696386,0.33604593,60896.0,60895.0,0.24972791]
[1728537696583,0.69684593,60896.0,60895.0,0.24972791]
[1728537698281,0.69684593,60896.0,60895.0,0.16517756]
[1728537702493,0.66594593,60896.0,60895.0,0.16517756]
[1728537704387,0.66594593,60896.0,60895.0,0.24974748]
[1728537705192,0.63414593,60896.0,60895.0,0.24974748]
[1728537706104,0.63414593,60896.0,60895.0,0.083178]
[1728537706292,0.63414593,60896.0,60895.0,0.24979567]
[1728537707003,0.63414593,60896.0,60895.0,0.16779611]
[1728537707706,0.55196993,60896.0,60895.0,0.16779611]
[1728537708089,0.67196993,60896.0,60895.0,0.16779611]
[1728537708298,0.67196993,60896.0,60895.0,0.083178]
[1728537708607,0.67196993,60896.0,60895.0,0.16780863]
[1728537713201,0.67196993,60896.0,60895.0,0.16780701]
[1728537725804,0.31116993,60896.0,60895.0,0.16780701]
[1728537726004,0.67196993,60896.0,60895.0,0.16780701]
[1728537730020,0.75414593,60896.0,60891.0,0.09843504]
[1728537730219,0.082183,60891.0,60890.0,0.0077]
[1728537730419,0.082183,60891.0,60888.0,0.085987]
[1728537730420,0.082186,60889.0,60888.0,0.082187]
[1728537730623,0.22,60889.0,60888.0,0.082187]
[1728537732717,0.222,60889.0,60888.0,0.082187]
[1728537733323,0.223,60889.0,60888.0,0.082187]
[1728537733628,0.2449386,60889.0,60888.0,0.082187]
[1728537737118,0.6057386,60889.0,60888.0,0.082187]
[1728537737835,0.2449386,60889.0,60888.0,0.082187]
[1728537738129,0.6057386,60889.0,60888.0,0.082187]
[1728537745139,0.6057386,60889.0,60888.0,0.16535344]
[1728537749738,0.6057386,60889.0,60888.0,0.24750288]
[1728537749941,0.6057386,60889.0,60888.0,0.16535344]
[1728537750133,0.6057386,60889.0,60888.0,0.1653278]
[1728537750939,0.4857386,60889.0,60888.0,0.082187]
[1728537751149,0.6057386,60889.0,60888.0,0.082187]
[1728537754835,0.2449386,60889.0,60888.0,0.082187]
[1728537755349,0.6057386,60889.0,60888.0,0.082187]
[1728537756443,0.6057386,60889.0,60888.0,0.14790661]
[1728537758547,0.2449386,60889.0,60888.0,0.14790661]
[1728537758850,0.6057386,60889.0,60888.0,0.14790661]
[1728537759039,0.6057386,60889.0,60888.0,0.16539611]
[1728537759841,0.6057386,60889.0,60888.0,0.16541553]
[1728537760649,0.4857386,60889.0,60888.0,0.16541553]
[1728537760856,0.6057386,60889.0,60888.0,0.16541553]
[1728537761035,0.6057386,60889.0,60888.0,0.16542376]
[1728537765247,0.2449386,60889.0,60888.0,0.16542376]
[1728537765437,0.6057386,60889.0,60888.0,0.16542376]
[1728537773858,0.2449386,60889.0,60888.0,0.16542376]
[1728537774060,0.6057386,60889.0,60888.0,0.082187]
[1728537778156,0.2449386,60889.0,60888.0,0.082187]
[1728537778359,0.6057386,60889.0,60888.0,0.082187]
[1728537778758,0.2449386,60889.0,60888.0,0.082187]
[1728537778962,0.6057386,60889.0,60888.0,0.082187]
[1728537781061,0.6057386,60889.0,60888.0,0.26403854]
[1728537781658,0.2449386,60889.0,60888.0,0.26403854]
[1728537781856,0.2449386,60889.0,60888.0,0.16545921]
[1728537781857,0.6057386,60889.0,60888.0,0.16545921]
[1728537782059,0.6057386,60889.0,60888.0,0.26403854]
[1728537784964,0.6057386,60889.0,60888.0,0.16545921]
[1728537785368,0.6057386,60889.0,60888.0,0.26403854]
[1728537786168,0.4857386,60889.0,60888.0,0.26403854]
[1728537786467,0.3857386,60889.0,60888.0,0.26403854]
[1728537786764,0.5057386,60889.0,60888.0,1.35731341]
[1728537788672,0.5057386,60889.0,60888.0,0.75731341]
[1728537789770,0.1449386,60889.0,60888.0,0.75731341]
[1728537790170,0.1449386,60889.0,60888.0,0.26459341]
[1728537790564,0.2549386,60889.0,60888.0,0.26459341]
[1728537790755,0.2549386,60889.0,60888.0,0.16545921]
[1728537792068,0.2549386,60889.0,60888.0,0.16535266]
[1728537792962,0.6157386,60889.0,60888.0,0.16535266]
[1728537793558,0.6157386,60889.0,60888.0,0.26395611]
[1728537796171,0.6157386,60889.0,60888.0,0.082187]
[1728537796373,0.2549386,60889.0,60888.0,0.082187]
[1728537796564,0.6157386,60889.0,60888.0,0.082187]
[1728537804068,0.6157386,60889.0,60888.0,0.26398169]
[1728537805483,0.2549386,60889.0,60888.0,0.16537824]
[1728537805872,0.2549386,60889.0,60888.0,0.26399697]
[1728537806177,0.6157386,60889.0,60888.0,0.26399697]
[1728537806778,0.2549386,60889.0,60888.0,0.26399697]
[1728537807171,0.6157386,60889.0,60888.0,0.26399697]
[1728537808774,0.2549386,60889.0,60888.0,0.26399697]
[1728537809079,0.6157386,60889.0,60888.0,0.26399697]
[1728537809472,0.6157386,60889.0,60888.0,0.16537824]
[1728537809881,0.2549386,60889.0,60888.0,0.26401343]
[1728537810273,0.6157386,60889.0,60888.0,0.26401343]
[1728537810472,0.6157386,60889.0,60888.0,0.26401421]
[1728537811077,0.2549386,60889.0,60888.0,0.26401421]
[1728537811276,0.6157386,60889.0,60888.0,0.26401421]
[1728537814178,0.6157386,60889.0,60888.0,0.16537824]
[1728537819995,0.6157386,60889.0,60888.0,0.26401421]
[1728537821596,0.6157386,60889.0,60888.0,0.16537824]
[1728537829696,0.6157386,60889.0,60888.0,0.26405288]
[1728537830389,0.6157386,60889.0,60888.0,0.16537824]
[1728537830591,0.6157386,60889.0,60888.0,0.16544084]
[1728537830786,0.6157386,60889.0,60888.0,0.26411873]
[1728537831590,0.2549386,60889.0,60888.0,0.26411873]
[1728537831892,0.6157386,60889.0,60888.0,0.16544084]
[1728537835604,0.6157386,60889.0,60888.0,0.16575081]
[1728537836490,0.4957386,60889.0,60888.0,0.26535481]
[1728537836902,0.6157386,60889.0,60888.0,0.26535481]
[1728537840400,0.6157386,60889.0,60888.0,0.26427779]
[1728537841103,0.2549386,60889.0,60888.0,0.16563059]
[1728537843100,0.0249386,60889.0,60888.0,0.16563059]
[1728537843296,0.0038,60896.0,60895.0,0.082178]
[1728537843500,0.22,60896.0,60895.0,0.16562159]
[1728537843700,0.22,60896.0,60895.0,0.29624844]
[1728537843701,0.24246139,60896.0,60895.0,0.29624844]
[1728537843905,0.02246139,60896.0,60895.0,0.19762159]
[1728537844112,0.12,60899.0,60895.0,0.29675595]
[1728537844306,0.12,60899.0,60898.0,0.082174]
[1728537844504,0.12,60899.0,60898.0,0.16561759]
[1728537844804,0.12,60899.0,60898.0,0.19861759]
[1728537845708,0.132,60899.0,60898.0,0.19961759]
[1728537846605,0.143,60899.0,60898.0,0.20061759]
[1728537847506,0.023,60899.0,60898.0,0.20061759]
[1728537847695,0.143,60899.0,60898.0,0.20061759]
[1728537851300,0.143,60899.0,60898.0,0.28263227]
[1728537852507,0.143,60899.0,60898.0,0.28219407]
[1728537852711,0.143,60899.0,60898.0,0.19918868]
[1728537856810,0.023,60899.0,60898.0,0.19918868]
[1728537857017,0.023,60899.0,60898.0,0.28217458]
[1728537857212,0.143,60899.0,60898.0,0.2001599]
[1728537857512,0.143,60899.0,60898.0,0.28221585]
[1728537857712,0.143,60899.0,60898.0,0.28220458]
[1728537857902,0.143,60899.0,60898.0,0.19916871]
[1728537859304,0.143,60899.0,60898.0,0.28224129]
[1728537860701,0.143,60899.0,60898.0,0.24924129]
[1728537862418,0.5038,60899.0,60898.0,0.24924129]
[1728537862602,0.5038,60899.0,60898.0,0.24926614]
[1728537864011,0.5038,60899.0,60898.0,0.16727143]
[1728537866014,0.143,60899.0,60898.0,0.16727143]
[1728537866219,0.5038,60899.0,60898.0,0.16727143]
[1728537867321,0.5038,60899.0,60898.0,0.16733101]
[1728537872022,0.5038,60899.0,60898.0,0.16740055]
[1728537874637,0.3838,60899.0,60898.0,0.16740055]
[1728537874943,0.5038,60899.0,60898.0,0.2666891]
[1728537875332,0.3838,60899.0,60898.0,0.2666891]
[1728537875532,0.5038,60899.0,60898.0,0.2666891]
[1728537876642,0.5038,60899.0,60898.0,0.26661431]
[1728537877244,0.4988,60899.0,60898.0,0.26661431]
[1728537877646,0.3788,60899.0,60898.0,0.26661431]
[1728537877845,0.018,60899.0,60898.0,0.33341593]
[1728537878745,0.013,60899.0,60898.0,0.33341593]
[1728537878942,0.133,60899.0,60898.0,0.33341593]
[1728537879138,0.133,60899.0,60898.0,0.26661431]
[1728537879541,0.133,60899.0,60898.0,0.33341598]
[1728537880055,0.133,60899.0,60898.0,0.26661431]
[1728537880235,0.133,60899.0,60898.0,0.33341466]
[1728537881256,0.133,60899.0,60898.0,0.33338081]
[1728537881551,0.133,60899.0,60898.0,0.26658046]
[1728537881743,0.133,60899.0,60898.0,0.33338149]
[1728537882148,0.133,60899.0,60898.0,0.33338293]
[1728537882743,0.133,60899.0,60898.0,0.26658046]
[1728537897461,0.013,60899.0,60898.0,0.26658046]
[1728537900164,0.013,60899.0,60898.0,0.33338328]
[1728537900759,0.013,60899.0,60898.0,0.33338167]
[1728537901262,0.013,60899.0,60898.0,0.65338167]
[1728537902660,0.133,60899.0,60898.0,0.65338167]
[1728537903669,0.133,60899.0,60898.0,0.65338219]
[1728537904068,0.133,60899.0,60898.0,0.65353791]
[1728537904569,0.125,60899.0,60898.0,0.65153791]
[1728537904760,0.129,60899.0,60898.0,0.65153791]
[1728537906060,0.009,60899.0,60898.0,0.65153791]
[1728537906261,0.14219855,60901.0,60900.0,0.082171]
[1728537906463,0.12,60901.0,60900.0,0.33153226]
[1728537906660,0.3608,60902.0,60901.0,0.08217]
[1728537906862,0.3608,60902.0,60901.0,0.26473218]
[1728537907961,0.38851142,60902.0,60901.0,0.26473218]
[1728537908159,0.0038,60906.0,60901.0,0.36936044]
[1728537908364,0.0038,60906.0,60905.0,0.082164]
[1728537908566,0.1521,60907.0,60906.0,0.082163]
[1728537908759,0.1521,60907.0,60906.0,0.16545012]
[1728537908966,0.1521,60907.0,60906.0,0.26452114]
[1728537909169,0.1521,60907.0,60906.0,0.16545012]
[1728537909373,0.17971789,60907.0,60906.0,0.16545012]
[1728537909865,0.17971789,60907.0,60906.0,0.16645012]
[1728537910073,0.19071789,60907.0,60906.0,0.16645012]
[1728537911174,0.15861789,60907.0,60906.0,0.16645012]
[1728537911466,0.15861789,60907.0,60906.0,0.26547752]
[1728537911671,0.16961789,60907.0,60906.0,0.26647752]
[1728537912068,0.16961789,60907.0,60906.0,0.16745012]
[1728537915067,0.16961789,60907.0,60906.0,0.26596316]
[1728537915971,0.16961789,60907.0,60906.0,0.16745012]
[1728537916175,0.16961789,60907.0,60906.0,0.26595777]
[1728537916366,0.16961789,60907.0,60906.0,0.084163]
[1728537924382,0.16961789,60907.0,60906.0,0.26572165]
[1728537927683,0.16961789,60907.0,60906.0,0.26573169]
[1728537929083,0.16961789,60907.0,60906.0,0.16722404]
[1728537932183,0.16961789,60907.0,60906.0,0.26621279]
[1728537932587,0.16961789,60907.0,60906.0,0.58621279]
[1728537939577,0.04961789,60907.0,60906.0,0.48722404]
[1728537939780,0.16961789,60907.0,60906.0,0.48722404]
[1728537941387,0.16961789,60907.0,60906.0,0.4873074]
[1728537946591,0.16961789,60907.0,60906.0,0.58644889]
[1728537948694,0.16961789,60907.0,60906.0,0.26644889]
[1728537951696,0.16961789,60907.0,60906.0,0.26641429]
[1728537954596,0.16961789,60907.0,60906.0,0.16730829]
[1728537960800,0.16961789,60907.0,60906.0,0.16730221]
[1728537961596,0.16961789,60907.0,60906.0,0.26639851]
[1728537964809,0.16961789,60907.0,60906.0,0.26641116]
[1728537966098,0.16961789,60907.0,60906.0,0.16730686]
[1728537974425,0.16961789,60907.0,60906.0,0.1672916]
[1728537976720,0.16961789,60907.0,60906.0,0.2663662]
[1728537977135,0.23481789,60907.0,60906.0,0.2663662]
[1728537977339,0.35481789,60907.0,60906.0,0.2663662]
[1728537977635,0.35481789,60907.0,60906.0,0.1672916]
[1728537983334,0.71561789,60907.0,60906.0,0.1672916]
[1728537983936,0.71561789,60907.0,60906.0,0.16737253]
[1728537990242,0.71561789,60907.0,60906.0,0.26599606]
[1728537991840,0.71561789,60907.0,60906.0,0.16737253]
[1728537992545,0.71561789,60907.0,60906.0,0.48737253]
[1728537994949,0.71561789,60907.0,60906.0,0.16737253]
[1728537995448,0.68311789,60907.0,60906.0,0.16737253]
[1728537998063,0.68311789,60907.0,60906.0,0.26596843]
[1728537998241,0.68311789,60907.0,60906.0,0.26596363]
[1728538001552,0.68311789,60907.0,60906.0,0.26597421]
[1728538001849,0.68311789,60907.0,60906.0,0.16737831]
[1728538002045,0.68311789,60907.0,60906.0,0.48737831]
[1728538002245,0.65041789,60907.0,60906.0,0.48737831]
[1728538006247,0.41041789,60907.0,60906.0,0.48737831]
[1728538006553,0.04961789,60907.0,60906.0,0.63306719]
[1728538007252,0.04961789,60907.0,60906.0,0.69406719]
[1728538007453,0.04961789,60907.0,60906.0,0.69406707]
[1728538008348,0.04961789,60907.0,60906.0,0.73496078]
[1728538009555,0.04961789,60907.0,60906.0,0.83388741]
[1728538009954,0.04961789,60907.0,60906.0,0.71388741]
[1728538010153,0.01262573,60907.0,60906.0,0.71388741]
[1728538010358,0.01262573,60907.0,60906.0,0.71388783]
[1728538010653,0.01262573,60907.0,60906.0,0.71388843]
[1728538013156,0.13262573,60907.0,60906.0,0.71388843]
[1728538013358,0.13262573,60907.0,60906.0,0.6727852]
[1728538014253,0.13262573,60907.0,60906.0,0.57385857]
[1728538014553,0.13262573,60907.0,60906.0,0.54816981]
[1728538015059,0.13262573,60907.0,60906.0,0.67277827]
[1728538015856,0.01262573,60907.0,60906.0,0.67277827]
[1728538016056,0.01262573,60907.0,60906.0,0.79277827]
[1728538017961,0.01262573,60907.0,60906.0,0.79246967]
[1728538018163,0.01262573,60907.0,60906.0,0.76678016]
[1728538018551,0.01262573,60907.0,60906.0,0.79246837]
[1728538021261,0.01262573,60907.0,60906.0,0.76678016]
[1728538021462,0.01262573,60907.0,60906.0,0.7925193]
[1728538023863,0.13262573,60907.0,60906.0,0.6725193]
[1728538024265,0.13262573,60907.0,60906.0,0.64683081]
[1728538024472,0.13262573,60907.0,60906.0,0.6725201]
[1728538024658,0.13262573,60907.0,60906.0,0.6423201]
[1728538025863,0.13262573,60907.0,60906.0,0.6115201]
[1728538026967,0.13262573,60907.0,60906.0,0.51273139]
[1728538027583,0.13262573,60907.0,60906.0,0.4870421]
[1728538027867,0.13262573,60907.0,60906.0,0.51273167]
[1728538030271,0.13262573,60907.0,60906.0,0.61164757]
[1728538034268,0.13262573,60907.0,60906.0,0.585958]
[1728538034567,0.13262573,60907.0,60906.0,0.61164757]
[1728538036572,0.13262573,60907.0,60906.0,0.29164757]
[1728538036776,0.13262573,60907.0,60906.0,0.265958]
[1728538036777,0.23262573,60907.0,60906.0,0.265958]
[1728538037079,0.23262573,60907.0,60906.0,0.1670421]
[1728538037273,0.23262573,60907.0,60906.0,0.26564391]
[1728538037964,0.23262573,60907.0,60906.0,0.1670421]
[1728538038569,0.23262573,60907.0,60906.0,0.26563155]
[1728538039869,0.23262573,60907.0,60906.0,0.58563155]
[1728538040669,0.13262573,60907.0,60906.0,0.58563155]
[1728538041069,0.13262573,60907.0,60906.0,0.58553155]
[1728538042671,0.13262573,60907.0,60906.0,0.4869421]
[1728538045370,0.13262573,60907.0,60906.0,0.404063]
[1728538045579,0.13262573,60907.0,60906.0,0.48720755]
[1728538050181,0.13262573,60907.0,60906.0,0.404063]
[1728538050378,0.13262573,60907.0,60906.0,0.48723434]
[1728538050872,0.23262573,60907.0,60906.0,0.48723434]
[1728538051674,0.59342573,60907.0,60906.0,0.48723434]
[1728538058084,0.59342573,60907.0,60906.0,0.58582379]
[1728538059870,0.59342573,60907.0,60906.0,0.58584401]
[1728538061674,0.59342573,60907.0,60906.0,0.50265245]
[1728538061883,0.59342573,60907.0,60906.0,0.58585777]
[1728538064778,0.59342573,60907.0,60906.0,0.58587624]
[1728538065183,0.59342573,60907.0,60906.0,0.48728679]
[1728538066083,0.59342573,60907.0,60906.0,0.58653226]
[1728538069282,0.59342573,60907.0,60906.0,0.66979137]
[1728538069485,0.59342573,60907.0,60906.0,0.58656758]
[1728538070899,0.47342573,60907.0,60906.0,0.58656758]
[1728538073889,0.47342573,60907.0,60906.0,0.76868224]
[1728538074088,0.47342573,60907.0,60906.0,0.6854214]
[1728538079600,0.47342573,60907.0,60906.0,0.58617766]
[1728538084410,0.47342573,60907.0,60906.0,0.48714596]
[1728538087509,0.47342573,60907.0,60906.0,0.48718904]
[1728538088011,0.47342573,60907.0,60906.0,0.58626963]
[1728538088199,0.47342573,60907.0,60906.0,0.48718904]
[1728538091409,0.47342573,60907.0,60906.0,0.58577631]
[1728538091610,0.47342573,60907.0,60906.0,0.48718904]
[1728538096916,0.47342573,60907.0,60906.0,0.58627467]
[1728538108517,0.11262573,60907.0,60906.0,0.58627467]